[Event "Early-Titled-Tuesday-Blitz-March-19-2024"]
[Site "Chess.com"]
[Date "2024.03.19"]
[Round "4"]
[White "BilicVladimir"]
[Black "jimmy-schlumpf"]
[Result "1-0"]
[WhiteElo "2710"]
[BlackElo "2351"]
[TimeControl "180+1"]
[EndTime "8:40:00 PDT"]
[Termination "BilicVladimir won by resignation"]

1. e4 {[%clk 0:03:00.9]} 1... Nf6 {[%clk 0:02:58.1]} 2. e5 {[%clk 0:03:00.9]}
2... Nd5 {[%clk 0:02:58.2]} 3. d4 {[%clk 0:03:01.5]} 3... d6 {[%clk 0:02:58.6]}
4. Nf3 {[%clk 0:03:01.3]} 4... g6 {[%clk 0:02:58.5]} 5. Bc4 {[%clk 0:02:57.5]}
5... Nb6 {[%clk 0:02:59]} 6. Bb3 {[%clk 0:02:57]} 6... Bg7 {[%clk 0:02:59.6]} 7.
O-O {[%clk 0:02:56.4]} 7... O-O {[%clk 0:02:59.6]} 8. c3 {[%clk 0:02:54]} 8...
a5 {[%clk 0:02:53.7]} 9. a4 {[%clk 0:02:52.7]} 9... Bg4 {[%clk 0:02:42.2]} 10.
h3 {[%clk 0:02:51.5]} 10... Bxf3 {[%clk 0:02:41.8]} 11. Qxf3 {[%clk 0:02:51.4]}
11... Nc6 {[%clk 0:02:32.2]} 12. exd6 {[%clk 0:02:50.4]} 12... cxd6 {[%clk
0:02:28.4]} 13. Na3 {[%clk 0:02:48.5]} 13... d5 {[%clk 0:02:12.2]} 14. Nb5
{[%clk 0:02:46.2]} 14... e6 {[%clk 0:02:11.6]} 15. Bf4 {[%clk 0:02:42.6]} 15...
Rc8 {[%clk 0:02:10.6]} 16. Qg3 {[%clk 0:02:41.9]} 16... Nc4 {[%clk 0:02:02.1]}
17. Bxc4 {[%clk 0:02:35.5]} 17... dxc4 {[%clk 0:02:01.4]} 18. Bd6 {[%clk
0:02:25.8]} 18... Re8 {[%clk 0:02:01.1]} 19. Nc7 {[%clk 0:02:23.3]} 19... Rxc7
{[%clk 0:01:45.7]} 20. Bxc7 {[%clk 0:02:23.3]} 20... Qd5 {[%clk 0:01:45.8]} 21.
Bf4 {[%clk 0:02:19.5]} 21... b5 {[%clk 0:01:42]} 22. axb5 {[%clk 0:02:13.6]}
22... Qxb5 {[%clk 0:01:40.7]} 23. Ra2 {[%clk 0:02:09.1]} 23... e5 {[%clk
0:01:15.6]} 24. dxe5 {[%clk 0:02:06.7]} 24... Nxe5 {[%clk 0:01:13.7]} 25. Bxe5
{[%clk 0:01:59.2]} 25... Rxe5 {[%clk 0:01:10.3]} 26. Rfa1 {[%clk 0:01:53.1]}
26... h5 {[%clk 0:01:07.1]} 27. Qf3 {[%clk 0:01:29.2]} 27... a4 {[%clk
0:00:49.2]} 28. Qa8+ {[%clk 0:01:24.5]} 28... Kh7 {[%clk 0:00:47.3]} 29. Qxa4
{[%clk 0:01:22.1]} 29... Qd5 {[%clk 0:00:43.7]} 30. Qc2 {[%clk 0:01:19.7]} 30...
Qe6 {[%clk 0:00:41.8]} 31. Ra6 {[%clk 0:01:16.4]} 31... Re1+ {[%clk 0:00:36.7]}
32. Rxe1 {[%clk 0:01:12.2]} 32... Qxe1+ {[%clk 0:00:35.9]} 33. Kh2 {[%clk
0:01:12.1]} 33... Be5+ {[%clk 0:00:36.1]} 34. g3 {[%clk 0:01:11.8]} 34... h4
{[%clk 0:00:36.4]} 35. Ra7 {[%clk 0:00:42.2]} 35... hxg3+ {[%clk 0:00:34.6]} 36.
Kg2 {[%clk 0:00:41.7]} 36... Kg7 {[%clk 0:00:29.3]} 37. Rd7 {[%clk 0:00:33.3]}
37... gxf2 {[%clk 0:00:25.9]} 38. Qxf2 {[%clk 0:00:28.7]} 38... Qe4+ {[%clk
0:00:22.2]} 39. Qf3 {[%clk 0:00:22]} 39... Qc2+ {[%clk 0:00:21.6]} 40. Qf2
{[%clk 0:00:22.2]} 40... Qe4+ {[%clk 0:00:20.9]} 41. Kg1 {[%clk 0:00:19.8]}
41... Kg8 {[%clk 0:00:03.3]} 42. Qxf7+ {[%clk 0:00:18]} 1-0

[Event "Early-Titled-Tuesday-Blitz-March-19-2024"]
[Site "Chess.com"]
[Date "2024.03.19"]
[Round "4"]
[White "AwareIdea"]
[Black "Kirill_Klukin"]
[Result "0-1"]
[WhiteElo "2517"]
[BlackElo "2812"]
[TimeControl "180+1"]
[EndTime "8:40:00 PDT"]
[Termination "Kirill_Klukin won on time"]

1. d4 {[%clk 0:01:42.8]} 1... Nf6 {[%clk 0:02:58]} 2. Bf4 {[%clk 0:01:40.5]}
2... g6 {[%clk 0:02:52.2]} 3. e3 {[%clk 0:01:40.7]} 3... Bg7 {[%clk 0:02:52.4]}
4. Nc3 {[%clk 0:01:41.2]} 4... d5 {[%clk 0:02:51.3]} 5. h4 {[%clk 0:01:41.6]}
5... h6 {[%clk 0:02:46]} 6. Nf3 {[%clk 0:01:41.5]} 6... Bg4 {[%clk 0:02:43.6]}
7. Be2 {[%clk 0:01:40.7]} 7... c6 {[%clk 0:02:43.9]} 8. Qd2 {[%clk 0:01:40.3]}
8... Nbd7 {[%clk 0:02:42.8]} 9. Ne5 {[%clk 0:01:38.5]} 9... Bxe2 {[%clk
0:02:42.4]} 10. Qxe2 {[%clk 0:01:37]} 10... Nxe5 {[%clk 0:02:39.1]} 11. Bxe5
{[%clk 0:01:36.8]} 11... O-O {[%clk 0:02:35.3]} 12. Bxf6 {[%clk 0:01:32]} 12...
Bxf6 {[%clk 0:02:32.2]} 13. O-O-O {[%clk 0:01:31.5]} 13... e5 {[%clk 0:02:29.1]}
14. Qg4 {[%clk 0:01:16.5]} 14... exd4 {[%clk 0:02:21.9]} 15. exd4 {[%clk
0:01:17.4]} 15... h5 {[%clk 0:01:42.7]} 16. Qf3 {[%clk 0:01:06.8]} 16... Kg7
{[%clk 0:01:19.4]} 17. g4 {[%clk 0:01:00]} 17... Rh8 {[%clk 0:01:19.5]} 18. g5
{[%clk 0:00:58.8]} 18... Be7 {[%clk 0:01:19.4]} 19. Rh3 {[%clk 0:00:46.9]} 19...
Re8 {[%clk 0:01:16]} 20. Re1 {[%clk 0:00:37]} 20... Bb4 {[%clk 0:01:10]} 21.
Rxe8 {[%clk 0:00:33.9]} 21... Qxe8 {[%clk 0:01:10.9]} 22. Qf6+ {[%clk
0:00:33.7]} 22... Kg8 {[%clk 0:01:10.8]} 23. Re3 {[%clk 0:00:34.6]} 23... Qd7
{[%clk 0:01:03.1]} 24. Ne2 {[%clk 0:00:30.9]} 24... Re8 {[%clk 0:00:57.8]} 25.
c3 {[%clk 0:00:19.7]} 25... Bf8 {[%clk 0:00:57.7]} 26. Rxe8 {[%clk 0:00:16.1]}
26... Qxe8 {[%clk 0:00:58.6]} 27. Kd2 {[%clk 0:00:16.2]} 27... Be7 {[%clk
0:00:48.6]} 28. Qf3 {[%clk 0:00:15.6]} 28... Bd6 {[%clk 0:00:46.6]} 29. Qe3
{[%clk 0:00:14.8]} 29... Qd7 {[%clk 0:00:46.2]} 30. Qf3 {[%clk 0:00:12.1]} 30...
Qe6 {[%clk 0:00:41.2]} 31. Nc1 {[%clk 0:00:11.3]} 31... c5 {[%clk 0:00:34.1]}
32. dxc5 {[%clk 0:00:09.7]} 32... Bxc5 {[%clk 0:00:35]} 33. Nd3 {[%clk 0:00:10]}
33... Bd6 {[%clk 0:00:35.2]} 34. Qe3 {[%clk 0:00:09.1]} 34... Qf5 {[%clk
0:00:33.7]} 35. Qxa7 {[%clk 0:00:05.9]} 35... Bf4+ {[%clk 0:00:27.9]} 36. Kc2
{[%clk 0:00:04.6]} 36... Qe4 {[%clk 0:00:23.7]} 37. Qd4 {[%clk 0:00:01.8]} 37...
Qe2+ {[%clk 0:00:20.6]} 38. Kb3 {[%clk 0:00:02.4]} 38... Qd1+ {[%clk 0:00:21.1]}
39. Kb4 {[%clk 0:00:02.1]} 39... Bd6+ {[%clk 0:00:21.7]} 40. Kb5 {[%clk
0:00:01.2]} 40... Qf3 {[%clk 0:00:17.1]} 0-1

[Event "Early-Titled-Tuesday-Blitz-March-19-2024"]
[Site "Chess.com"]
[Date "2024.03.19"]
[Round "4"]
[White "Adar_07"]
[Black "Jospem"]
[Result "0-1"]
[WhiteElo "2844"]
[BlackElo "3060"]
[TimeControl "180+1"]
[EndTime "8:40:06 PDT"]
[Termination "Jospem won by resignation"]

1. e4 {[%clk 0:02:59.8]} 1... e5 {[%clk 0:03:00]} 2. Nf3 {[%clk 0:03:00.1]} 2...
Nc6 {[%clk 0:03:00.8]} 3. Bb5 {[%clk 0:03:00.5]} 3... a6 {[%clk 0:03:01.3]} 4.
Ba4 {[%clk 0:02:59.9]} 4... Nf6 {[%clk 0:03:01.5]} 5. O-O {[%clk 0:02:59.9]}
5... Be7 {[%clk 0:03:01.3]} 6. Re1 {[%clk 0:02:52.1]} 6... b5 {[%clk 0:03:01.1]}
7. Bb3 {[%clk 0:02:51.9]} 7... d6 {[%clk 0:03:01.9]} 8. h3 {[%clk 0:02:47.2]}
8... O-O {[%clk 0:03:00.4]} 9. c3 {[%clk 0:02:47.2]} 9... Be6 {[%clk 0:03:00.7]}
10. d4 {[%clk 0:02:43.6]} 10... Bxb3 {[%clk 0:03:00.5]} 11. axb3 {[%clk
0:02:42.8]} 11... h6 {[%clk 0:03:00.4]} 12. d5 {[%clk 0:02:36.1]} 12... Nb8
{[%clk 0:03:00.3]} 13. Nbd2 {[%clk 0:02:23.2]} 13... c6 {[%clk 0:03:00.2]} 14.
dxc6 {[%clk 0:02:22.7]} 14... Nxc6 {[%clk 0:03:00.1]} 15. b4 {[%clk 0:02:22.6]}
15... Re8 {[%clk 0:02:52.7]} 16. Nb3 {[%clk 0:02:21.8]} 16... Bf8 {[%clk
0:02:48.9]} 17. Na5 {[%clk 0:02:21.7]} 17... Ne7 {[%clk 0:02:35.8]} 18. Qb3
{[%clk 0:01:52]} 18... Ng6 {[%clk 0:02:30.2]} 19. g3 {[%clk 0:01:49.2]} 19...
Rc8 {[%clk 0:02:09]} 20. Kg2 {[%clk 0:01:41.3]} 20... Qd7 {[%clk 0:02:09.1]} 21.
Qd1 {[%clk 0:01:36.5]} 21... Rcd8 {[%clk 0:02:04.7]} 22. Nb3 {[%clk 0:01:35.2]}
22... Qb7 {[%clk 0:02:02.9]} 23. Na5 {[%clk 0:01:35.1]} 23... Qa8 {[%clk
0:02:02.5]} 24. Qc2 {[%clk 0:01:30.7]} 24... d5 {[%clk 0:02:02.3]} 25. exd5
{[%clk 0:01:30.9]} 25... Rxd5 {[%clk 0:01:57.4]} 26. Be3 {[%clk 0:01:29.7]}
26... Qc8 {[%clk 0:01:53.2]} 27. Qe2 {[%clk 0:01:21.2]} 27... e4 {[%clk
0:01:48.2]} 28. Nd4 {[%clk 0:01:14.1]} 28... Ne5 {[%clk 0:01:47.1]} 29. Red1
{[%clk 0:01:08.7]} 29... Nd3 {[%clk 0:01:29.2]} 30. Nab3 {[%clk 0:00:43.2]}
30... g6 {[%clk 0:01:27]} 31. Nc1 {[%clk 0:00:40.8]} 31... Ne5 {[%clk
0:01:15.5]} 32. Ncb3 {[%clk 0:00:32.4]} 32... Nc4 {[%clk 0:01:15.6]} 33. Na5
{[%clk 0:00:24.1]} 33... Rh5 {[%clk 0:01:15.7]} 34. h4 {[%clk 0:00:23.6]} 34...
Ne5 {[%clk 0:01:14.4]} 35. Bf4 {[%clk 0:00:20.5]} 35... Neg4 {[%clk 0:01:10.9]}
36. Nac6 {[%clk 0:00:17.6]} 36... g5 {[%clk 0:01:10.6]} 37. Be3 {[%clk
0:00:06.9]} 37... gxh4 {[%clk 0:01:09.5]} 38. Rh1 {[%clk 0:00:07.8]} 38... h3+
{[%clk 0:01:09.9]} 39. Kg1 {[%clk 0:00:07.1]} 39... Rd5 {[%clk 0:00:59.7]} 40.
Qf1 {[%clk 0:00:03.4]} 40... h2+ {[%clk 0:00:59.6]} 41. Kg2 {[%clk 0:00:02.7]}
41... h5 {[%clk 0:00:59.3]} 42. Qe2 {[%clk 0:00:02.2]} 42... Rd6 {[%clk
0:00:55.5]} 43. Bg5 {[%clk 0:00:01.8]} 43... Rxc6 {[%clk 0:00:55.3]} 44. Nxc6
{[%clk 0:00:02.7]} 44... Qxc6 {[%clk 0:00:56.1]} 45. Kh3 {[%clk 0:00:03]} 45...
Qe6 {[%clk 0:00:52.8]} 46. Bxf6 {[%clk 0:00:03.3]} 46... Qxf6 {[%clk 0:00:51.9]}
47. Kg2 {[%clk 0:00:03.1]} 47... Re5 {[%clk 0:00:49.5]} 48. Ra5 {[%clk
0:00:02.5]} 48... Rf5 {[%clk 0:00:49.6]} 49. Qxe4 {[%clk 0:00:01.8]} 49... Rxf2+
{[%clk 0:00:48.7]} 50. Kh3 {[%clk 0:00:02.3]} 50... Rxb2 {[%clk 0:00:48.1]} 51.
Qf4 {[%clk 0:00:01.3]} 51... Qxf4 {[%clk 0:00:45]} 52. gxf4 {[%clk 0:00:01.4]}
52... Nf2+ {[%clk 0:00:45.7]} 53. Kg2 {[%clk 0:00:02.1]} 53... Nxh1+ {[%clk
0:00:46.3]} 54. Kxh1 {[%clk 0:00:03]} 54... Rb3 {[%clk 0:00:46.2]} 55. Rxa6
{[%clk 0:00:03.3]} 55... Rxc3 {[%clk 0:00:46.2]} 56. Kxh2 {[%clk 0:00:03.9]}
56... Rc4 {[%clk 0:00:46.5]} 0-1

[Event "Early-Titled-Tuesday-Blitz-March-19-2024"]
[Site "Chess.com"]
[Date "2024.03.19"]
[Round "4"]
[White "missponyo10"]
[Black "Leo_C"]
[Result "0-1"]
[WhiteElo "2247"]
[BlackElo "2637"]
[TimeControl "180+1"]
[EndTime "8:40:07 PDT"]
[Termination "Leo_C won by checkmate"]

1. e4 {[%clk 0:03:00.9]} 1... c6 {[%clk 0:02:59.5]} 2. d4 {[%clk 0:03:00.4]}
2... d5 {[%clk 0:02:59.4]} 3. Nd2 {[%clk 0:03:01.3]} 3... dxe4 {[%clk
0:02:59.1]} 4. Nxe4 {[%clk 0:03:02.2]} 4... Bf5 {[%clk 0:02:59.2]} 5. Ng3 {[%clk
0:03:01.6]} 5... Bg6 {[%clk 0:02:59.3]} 6. h4 {[%clk 0:03:02.4]} 6... h6 {[%clk
0:02:57.8]} 7. Nf3 {[%clk 0:03:01.3]} 7... e6 {[%clk 0:02:57.3]} 8. h5 {[%clk
0:03:01.7]} 8... Bh7 {[%clk 0:02:57.1]} 9. Bd3 {[%clk 0:03:02.6]} 9... Bxd3
{[%clk 0:02:56.7]} 10. Qxd3 {[%clk 0:03:03.5]} 10... Nf6 {[%clk 0:02:57]} 11.
Bd2 {[%clk 0:03:03.4]} 11... c5 {[%clk 0:02:57.1]} 12. dxc5 {[%clk 0:02:56.4]}
12... Qxd3 {[%clk 0:02:55.3]} 13. cxd3 {[%clk 0:02:57.3]} 13... Bxc5 {[%clk
0:02:51.3]} 14. Rc1 {[%clk 0:02:57.2]} 14... Bb6 {[%clk 0:02:48.5]} 15. Rc8+
{[%clk 0:02:52.6]} 15... Bd8 {[%clk 0:02:39.5]} 16. Bf4 {[%clk 0:02:41.9]} 16...
O-O {[%clk 0:02:29]} 17. O-O {[%clk 0:02:36.9]} 17... Bb6 {[%clk 0:02:27.5]} 18.
Rfc1 {[%clk 0:02:33.5]} 18... Nc6 {[%clk 0:02:24.3]} 19. Rxa8 {[%clk 0:02:32]}
19... Rxa8 {[%clk 0:02:23.6]} 20. Ne5 {[%clk 0:02:32.6]} 20... Nxe5 {[%clk
0:02:20.9]} 21. Bxe5 {[%clk 0:02:33.5]} 21... Bxf2+ {[%clk 0:02:20.9]} 22. Kxf2
{[%clk 0:02:33.4]} 22... Ng4+ {[%clk 0:02:21]} 23. Ke2 {[%clk 0:02:33.5]} 23...
Nxe5 {[%clk 0:02:21.9]} 24. Rc7 {[%clk 0:02:32.8]} 24... Rb8 {[%clk 0:02:18.2]}
25. Ne4 {[%clk 0:02:31.1]} 25... a5 {[%clk 0:01:50.9]} 26. d4 {[%clk 0:02:28.9]}
26... Nc6 {[%clk 0:01:48]} 27. Ke3 {[%clk 0:02:28.3]} 27... Nb4 {[%clk
0:01:46.2]} 28. Nc3 {[%clk 0:02:25.2]} 28... Rd8 {[%clk 0:01:29.4]} 29. Rxb7
{[%clk 0:02:16.9]} 29... Nc2+ {[%clk 0:01:25.9]} 30. Kd3 {[%clk 0:02:12]} 30...
Nxd4 {[%clk 0:01:23.8]} 31. Kc4 {[%clk 0:02:08.9]} 31... e5 {[%clk 0:01:15.3]}
32. Nd5 {[%clk 0:02:07.2]} 32... Nf5 {[%clk 0:01:12.2]} 33. Ra7 {[%clk
0:02:01.2]} 33... Nd6+ {[%clk 0:01:07.5]} 34. Kc5 {[%clk 0:02:01.2]} 34... Ne4+
{[%clk 0:01:04.5]} 35. Kc4 {[%clk 0:01:59.7]} 35... Nd6+ {[%clk 0:00:45.1]} 36.
Kc5 {[%clk 0:01:59.7]} 36... f5 {[%clk 0:00:43.8]} 37. Ne7+ {[%clk 0:01:52.2]}
37... Kh7 {[%clk 0:00:42.7]} 38. Nc6 {[%clk 0:01:46.4]} 38... Ne4+ {[%clk
0:00:40.4]} 39. Kc4 {[%clk 0:01:45.5]} 39... Rc8 {[%clk 0:00:38.9]} 40. Kd5
{[%clk 0:01:43.7]} 40... Nf6+ {[%clk 0:00:36.8]} 41. Kd6 {[%clk 0:01:43.5]}
41... e4 {[%clk 0:00:36.3]} 42. Ne7 {[%clk 0:01:41.9]} 42... Rd8+ {[%clk
0:00:30.3]} 43. Ke6 {[%clk 0:01:38.8]} 43... e3 {[%clk 0:00:26.9]} 44. Nxf5
{[%clk 0:01:35.2]} 44... Re8+ {[%clk 0:00:22.6]} 45. Kd6 {[%clk 0:01:22.4]}
45... e2 {[%clk 0:00:22.6]} 46. Rxg7+ {[%clk 0:01:21.6]} 46... Kh8 {[%clk
0:00:22.4]} 47. Rg6 {[%clk 0:01:22]} 47... Ne4+ {[%clk 0:00:20.6]} 48. Kd7
{[%clk 0:01:18.9]} 48... e1=Q {[%clk 0:00:18.6]} 49. Rxh6+ {[%clk 0:01:15.4]}
49... Kg8 {[%clk 0:00:18.5]} 50. Rg6+ {[%clk 0:01:15.5]} 50... Kf8 {[%clk
0:00:17.7]} 51. Nh6 {[%clk 0:01:11.3]} 51... Nf6+ {[%clk 0:00:17.3]} 52. Rxf6+
{[%clk 0:01:09.9]} 52... Kg7 {[%clk 0:00:17.1]} 53. Rg6+ {[%clk 0:01:09.4]}
53... Kh7 {[%clk 0:00:17.3]} 54. Ng4 {[%clk 0:01:08.6]} 54... Qe7+ {[%clk
0:00:16.6]} 55. Kc6 {[%clk 0:01:08.9]} 55... Rc8+ {[%clk 0:00:16.5]} 56. Kd5
{[%clk 0:01:09]} 56... Rd8+ {[%clk 0:00:16.3]} 57. Kc6 {[%clk 0:01:06.2]} 57...
Qd7+ {[%clk 0:00:16.2]} 58. Kc5 {[%clk 0:01:05]} 58... Rc8+ {[%clk 0:00:16.1]}
59. Kb6 {[%clk 0:01:05.5]} 59... Qc7+ {[%clk 0:00:16.4]} 60. Kb5 {[%clk
0:01:05.8]} 60... Rb8+ {[%clk 0:00:16.3]} 61. Ka4 {[%clk 0:01:05.4]} 61... Qc4+
{[%clk 0:00:15.8]} 62. Ka3 {[%clk 0:01:05.3]} 62... Qb4# {[%clk 0:00:15.7]} 0-1

[Event "Early-Titled-Tuesday-Blitz-March-19-2024"]
[Site "Chess.com"]
[Date "2024.03.19"]
[Round "4"]
[White "vladoboch"]
[Black "Mops_2004"]
[Result "0-1"]
[WhiteElo "2471"]
[BlackElo "2741"]
[TimeControl "180+1"]
[EndTime "8:40:08 PDT"]
[Termination "Mops_2004 won by checkmate"]

1. e4 {[%clk 0:03:00.9]} 1... c5 {[%clk 0:02:59.9]} 2. Nf3 {[%clk 0:03:01.1]}
2... Nc6 {[%clk 0:03:00.2]} 3. Bb5 {[%clk 0:03:00.3]} 3... e6 {[%clk 0:02:59.8]}
4. O-O {[%clk 0:02:58.5]} 4... Nge7 {[%clk 0:02:59.7]} 5. d4 {[%clk 0:02:58.8]}
5... cxd4 {[%clk 0:02:59.6]} 6. Nxd4 {[%clk 0:02:59.7]} 6... Ng6 {[%clk
0:03:00]} 7. Be3 {[%clk 0:02:55.3]} 7... Be7 {[%clk 0:02:59.6]} 8. c3 {[%clk
0:02:55.3]} 8... O-O {[%clk 0:02:59.6]} 9. Nd2 {[%clk 0:02:53.9]} 9... a6 {[%clk
0:02:59.9]} 10. Bd3 {[%clk 0:02:53.6]} 10... b5 {[%clk 0:03:00.1]} 11. Qh5
{[%clk 0:02:53.4]} 11... Bb7 {[%clk 0:03:00.1]} 12. Rad1 {[%clk 0:02:52.7]}
12... Qc7 {[%clk 0:02:46.3]} 13. f4 {[%clk 0:02:44]} 13... Nxd4 {[%clk
0:02:31.2]} 14. cxd4 {[%clk 0:02:43.5]} 14... f5 {[%clk 0:02:31.4]} 15. exf5
{[%clk 0:02:01.5]} 15... exf5 {[%clk 0:02:30.6]} 16. Nf3 {[%clk 0:02:00.9]}
16... Nxf4 {[%clk 0:02:10]} 17. Bxf4 {[%clk 0:02:00.7]} 17... Qxf4 {[%clk
0:02:10.9]} 18. Kh1 {[%clk 0:01:49.2]} 18... g6 {[%clk 0:02:06]} 19. Qh3 {[%clk
0:01:47.7]} 19... Bf6 {[%clk 0:01:55]} 20. Ne5 {[%clk 0:01:33]} 20... Bxe5
{[%clk 0:01:24.9]} 21. Rxf4 {[%clk 0:01:32.8]} 21... Bxf4 {[%clk 0:01:25.8]} 22.
Qh4 {[%clk 0:01:33.5]} 22... Bd6 {[%clk 0:01:20.6]} 23. Bc2 {[%clk 0:01:28.7]}
23... Rae8 {[%clk 0:01:16.4]} 24. Bb3+ {[%clk 0:01:28.6]} 24... Kg7 {[%clk
0:01:16.7]} 25. d5 {[%clk 0:01:24]} 25... Re4 {[%clk 0:01:11.8]} 26. Qf2 {[%clk
0:01:18.7]} 26... Rfe8 {[%clk 0:00:53.4]} 27. g3 {[%clk 0:01:18.8]} 27... Be5
{[%clk 0:00:32.2]} 28. Qb6 {[%clk 0:01:05.9]} 28... Ba8 {[%clk 0:00:28.6]} 29.
Qxa6 {[%clk 0:01:02.5]} 29... b4 {[%clk 0:00:29.1]} 30. a4 {[%clk 0:00:51.4]}
30... Bxb2 {[%clk 0:00:17.3]} 31. a5 {[%clk 0:00:43]} 31... Re3 {[%clk
0:00:17.7]} 32. Qc4 {[%clk 0:00:22.4]} 32... Bc3 {[%clk 0:00:15.7]} 33. a6
{[%clk 0:00:15.6]} 33... h5 {[%clk 0:00:15.7]} 34. a7 {[%clk 0:00:15]} 34... Kh6
{[%clk 0:00:12.2]} 35. Qf4+ {[%clk 0:00:12.7]} 35... Kg7 {[%clk 0:00:12.6]} 36.
Qc4 {[%clk 0:00:07.3]} 36... R3e4 {[%clk 0:00:11]} 37. Qc7 {[%clk 0:00:04.7]}
37... R4e7 {[%clk 0:00:09.2]} 38. Kg1 {[%clk 0:00:03.6]} 38... Kh6 {[%clk
0:00:08.6]} 39. d6 {[%clk 0:00:04]} 39... Bd4+ {[%clk 0:00:04.4]} 40. Rxd4
{[%clk 0:00:03.7]} 40... Re1+ {[%clk 0:00:04.3]} 41. Kf2 {[%clk 0:00:04.3]}
41... R8e2# {[%clk 0:00:04.8]} 0-1

[Event "Early-Titled-Tuesday-Blitz-March-19-2024"]
[Site "Chess.com"]
[Date "2024.03.19"]
[Round "4"]
[White "AktilekAskarovich"]
[Black "chess123456s"]
[Result "1/2-1/2"]
[WhiteElo "2370"]
[BlackElo "2554"]
[TimeControl "180+1"]
[EndTime "8:40:08 PDT"]
[Termination "Game drawn - insufficient material"]

1. d4 {[%clk 0:02:58.1]} 1... g6 {[%clk 0:02:58]} 2. c4 {[%clk 0:02:58.3]} 2...
Bg7 {[%clk 0:02:58.4]} 3. e4 {[%clk 0:02:57.1]} 3... d6 {[%clk 0:02:57.8]} 4.
Nf3 {[%clk 0:02:57.1]} 4... Nc6 {[%clk 0:02:57.7]} 5. h3 {[%clk 0:02:55.5]} 5...
e5 {[%clk 0:02:56.9]} 6. d5 {[%clk 0:02:55.6]} 6... Nce7 {[%clk 0:02:57.1]} 7.
Nc3 {[%clk 0:02:54.2]} 7... h6 {[%clk 0:02:56.9]} 8. g4 {[%clk 0:02:52.1]} 8...
f5 {[%clk 0:02:55.7]} 9. gxf5 {[%clk 0:02:52.1]} 9... gxf5 {[%clk 0:02:55.9]}
10. Rg1 {[%clk 0:02:52.4]} 10... Bf6 {[%clk 0:02:55.9]} 11. Nd2 {[%clk
0:02:35.2]} 11... h5 {[%clk 0:02:46.6]} 12. exf5 {[%clk 0:02:28.4]} 12... Bxf5
{[%clk 0:02:46.2]} 13. Nde4 {[%clk 0:02:29.1]} 13... Qd7 {[%clk 0:02:41.1]} 14.
c5 {[%clk 0:02:17]} 14... Bxe4 {[%clk 0:02:10.4]} 15. Nxe4 {[%clk 0:02:16.8]}
15... dxc5 {[%clk 0:02:08.9]} 16. Nxc5 {[%clk 0:02:06.1]} 16... Qxd5 {[%clk
0:01:56.4]} 17. Qxd5 {[%clk 0:01:59.3]} 17... Nxd5 {[%clk 0:01:57.3]} 18. Nxb7
{[%clk 0:01:42.2]} 18... Nge7 {[%clk 0:01:57.6]} 19. Bb5+ {[%clk 0:01:38]} 19...
Kf7 {[%clk 0:01:57.8]} 20. Bc4 {[%clk 0:01:38.4]} 20... Rab8 {[%clk 0:01:54.4]}
21. Nc5 {[%clk 0:01:35.3]} 21... Rb4 {[%clk 0:01:51.2]} 22. b3 {[%clk
0:01:33.7]} 22... e4 {[%clk 0:01:37.8]} 23. Rb1 {[%clk 0:01:33.6]} 23... Rhb8
{[%clk 0:01:35]} 24. Bxd5+ {[%clk 0:01:21.1]} 24... Nxd5 {[%clk 0:01:33.9]} 25.
Bd2 {[%clk 0:01:21.1]} 25... Rd4 {[%clk 0:01:22.5]} 26. Rc1 {[%clk 0:01:05.1]}
26... Rd8 {[%clk 0:01:05.7]} 27. Ke2 {[%clk 0:01:01.4]} 27... c6 {[%clk
0:00:49.6]} 28. Rc2 {[%clk 0:00:59.3]} 28... Nb6 {[%clk 0:00:44.5]} 29. Be3
{[%clk 0:00:58.3]} 29... R4d5 {[%clk 0:00:42.5]} 30. Nb7 {[%clk 0:00:57.6]}
30... R8d7 {[%clk 0:00:41.3]} 31. Nc5 {[%clk 0:00:57.3]} 31... Rd8 {[%clk
0:00:41]} 32. a3 {[%clk 0:00:54.3]} 32... Rb8 {[%clk 0:00:33.4]} 33. b4 {[%clk
0:00:54.2]} 33... Re8 {[%clk 0:00:26.6]} 34. Nb3 {[%clk 0:00:52.1]} 34... Rd6
{[%clk 0:00:25.9]} 35. Na5 {[%clk 0:00:51.6]} 35... Nd5 {[%clk 0:00:24.2]} 36.
Rgc1 {[%clk 0:00:49.4]} 36... Rc8 {[%clk 0:00:19.2]} 37. Rxc6 {[%clk 0:00:47.4]}
37... Rcxc6 {[%clk 0:00:17.3]} 38. Rxc6 {[%clk 0:00:47]} 38... Rxc6 {[%clk
0:00:17.3]} 39. Nxc6 {[%clk 0:00:47.9]} 39... Nc3+ {[%clk 0:00:15.8]} 40. Ke1
{[%clk 0:00:48.6]} 40... a6 {[%clk 0:00:15.8]} 41. Bd4 {[%clk 0:00:47.6]} 41...
Nb5 {[%clk 0:00:12.8]} 42. Bxf6 {[%clk 0:00:47.9]} 42... Kxf6 {[%clk 0:00:13.7]}
43. a4 {[%clk 0:00:48.4]} 43... Nc3 {[%clk 0:00:14.1]} 44. a5 {[%clk 0:00:48.2]}
44... Ke6 {[%clk 0:00:14.3]} 45. Nb8 {[%clk 0:00:48.2]} 45... Kd6 {[%clk
0:00:13.9]} 46. Nxa6 {[%clk 0:00:48.7]} 46... Kc6 {[%clk 0:00:14.6]} 47. Nc5
{[%clk 0:00:49.1]} 47... Kb5 {[%clk 0:00:14.8]} 48. a6 {[%clk 0:00:49.2]} 48...
Kb6 {[%clk 0:00:14.5]} 49. Kd2 {[%clk 0:00:48.9]} 49... Nd5 {[%clk 0:00:14.9]}
50. Nxe4 {[%clk 0:00:48.9]} 50... Kxa6 {[%clk 0:00:15.4]} 51. Kd3 {[%clk
0:00:46.5]} 51... Nf4+ {[%clk 0:00:14.6]} 52. Ke3 {[%clk 0:00:46.3]} 52... Nxh3
{[%clk 0:00:15.5]} 53. Ng3 {[%clk 0:00:46.6]} 53... h4 {[%clk 0:00:15]} 54. Nf5
{[%clk 0:00:47.1]} 54... Nxf2 {[%clk 0:00:12.7]} 55. Kxf2 {[%clk 0:00:46]} 55...
Kb5 {[%clk 0:00:13.3]} 56. Nxh4 {[%clk 0:00:46.6]} 56... Kxb4 {[%clk 0:00:14.2]}
1/2-1/2